fUSD/lending_fUSD_20260517
["ID","MTS","AMOUNT","RATE_DAILY","PERIOD"]
[422482640,1778987464000,-200.0,0.0003875,2]
[422482629,1778987464000,-200.0,0.0003875,2]
[422482639,1778987464000,-200.0,0.0003875,2]
[422482630,1778987464000,-200.0,0.0003875,2]
[422482631,1778987464000,-200.0,0.0003875,2]
[422482632,1778987464000,-200.0,0.0003875,2]
[422482636,1778987464000,-200.0,0.0003875,2]
[422482638,1778987464000,-200.0,0.0003875,2]
[422482635,1778987464000,-200.0,0.0003875,2]
[422482633,1778987464000,-200.0,0.0003875,2]
[422482628,1778987464000,-200.0,0.0003875,2]
[422482641,1778987464000,-334.0,0.0003875,2]
[422482650,1778987464000,-189.66298696,0.00038848,7]
[422482634,1778987464000,-200.0,0.0003875,2]
[422482647,1778987464000,-446.3734179,0.0003884,7]
[422482651,1778987464000,-387.02577345,0.00038876,2]
[422482642,1778987464000,-350.0,0.00038767,5]
[422482645,1778987464000,-1407.0,0.000388,30]
[422482653,1778987464000,-536.0,0.00038884,14]
[422482652,1778987464000,-468347.60902101,0.0003888,60]
[422482644,1778987464000,-478.5,0.000388,90]
[422482646,1778987464000,-12691.11304661,0.00038834,2]
[422482649,1778987464000,-153.56,0.00038843,120]
[422482643,1778987464000,-1001.11,0.000388,90]
[422482699,1778987465000,-1478.7970039,0.00039582,2]
[422482703,1778987465000,-1577.31,0.0003969,120]
[422482701,1778987465000,-250.0,0.000396,30]
[422482693,1778987465000,-167.355,0.00039548,47]
[422482696,1778987465000,-150.0,0.00039579,2]
[422482700,1778987465000,-439.98,0.00039596,120]
[422482710,1778987465000,-152.84,0.0003975,120]
[422482706,1778987465000,-782.0,0.00039712,11]
[422482704,1778987465000,-3181.64,0.0003969,120]
[422482707,1778987465000,-467.55,0.00039726,60]
[422482708,1778987465000,-300.0,0.00039726,120]
[422482713,1778987465000,-1000.0,0.000398,120]
[422482698,1778987465000,-291231.1676793,0.00039582,2]
[422482705,1778987465000,-4001.4436199,0.000397,120]
[422482702,1778987465000,-2335.0,0.00039653,11]
[422482683,1778987465000,-400.0,0.00039183,2]
[422482695,1778987465000,-354.11,0.00039555,30]
[422482694,1778987465000,-239.81,0.00039555,30]
[422482692,1778987465000,-434196.4883449,0.0003949,2]
[422482688,1778987465000,-163.0,0.00039401,11]
[422482690,1778987465000,-197.47,0.00039423,120]
[422482686,1778987465000,-153.0,0.000393,120]
[422482685,1778987465000,-151.28656754,0.000393,2]
[422482687,1778987465000,-2311.0,0.00039392,11]
[422482689,1778987465000,-536.0,0.00039418,15]
[422482684,1778987465000,-584.66,0.00039243,120]
[422482682,1778987465000,-1000.0,0.00039183,2]
[422482691,1778987465000,-219.99,0.00039423,120]
[422482681,1778987465000,-151.0,0.000391,120]
[422482709,1778987465000,-748.37,0.00039726,60]
[422482697,1778987465000,-76425.4429606,0.00039582,2]
[422482712,1778987465000,-1406.87099074,0.00039776,2]
[422482714,1778987465000,-1000.0,0.000398,120]
[422482715,1778987465000,-1000.0,0.000398,120]
[422482732,1778987465000,-193.89311,0.0003013,7]
[422482734,1778987465000,-17553.01377034,0.00030686,2]
[422482741,1778987465000,-151.0,0.00038,7]
[422482743,1778987465000,-203.92548,0.00038,7]
[422482739,1778987465000,-193.89311,0.00038,7]
[422482733,1778987465000,-151.0,0.0003013,7]
[422482740,1778987465000,-151.0,0.00038,7]
[422482735,1778987465000,-151.0,0.00036,7]
[422482731,1778987465000,-153.49181,0.0003013,7]
[422482742,1778987465000,-193.893103,0.00038,7]
[422482737,1778987465000,-151.0,0.00036,7]
[422482744,1778987465000,-350.0,0.00039726,5]
[422482745,1778987465000,-748034.701294,0.000398,30]
[422482746,1778987465000,-512.48878988,0.00027397,10]
[422482738,1778987465000,-300.0,0.00036344,2]
[422482736,1778987465000,-193.89311,0.00036,7]
[422482711,1778987465000,-268890.0737838,0.00039774,2]
[422482726,1778987465000,-151.0,0.00027784,7]
[422482717,1778987465000,-1000.0,0.000398,120]
[422482747,1778987465000,-4105.73699953,0.00027397,10]
[422482718,1778987465000,-153.0,0.000398,120]
[422482720,1778987465000,-590716.48603194,0.000398,30]
[422482716,1778987465000,-1000.0,0.000398,120]
[422482719,1778987465000,-2000.0,0.000398,7]
[422482721,1778987465000,501.8662985,0.00030137,120]
[422482730,1778987465000,-151.0,0.0003013,7]
[422482722,1778987465000,-14565.72596391,0.00023423,2]
[422482728,1778987465000,-151.0,0.00027784,7]
[422482725,1778987465000,-151.0,0.00027784,7]
[422482724,1778987465000,-193.89311,0.00027784,7]
[422482729,1778987465000,-152.857673,0.00027784,7]
[422482727,1778987465000,-193.89311,0.00027784,7]
[422482723,1778987465000,-151.0,0.00027784,7]
[422482748,1778987466000,-14565.72596391,0.00024843,2]
[422482751,1778987466000,-121.99228907,0.00027397,10]
[422482750,1778987466000,-693.92257626,0.00026968,2]
[422482749,1778987466000,-205.69100266,0.00026858,2]
[422482752,1778987488000,158.0,0.000301,120]
[422482756,1778987833000,500.0,0.00027683,120]
[422482763,1778987868000,-500.0,0.00014999,2]
[422482757,1778987868000,500.0,0.00027683,120]
[422482758,1778987868000,-163.41,0.00014998,2]
[422482759,1778987868000,-500.0,0.00014999,2]
[422482760,1778987868000,-500.0,0.00014999,2]
[422482762,1778987868000,-500.0,0.00014999,2]
[422482761,1778987868000,-500.0,0.00014999,2]
[422482766,1778987868000,-500.0,0.00014999,2]
[422482767,1778987868000,-500.0,0.00014999,2]
[422482765,1778987868000,-500.0,0.00014999,2]
[422482772,1778987868000,-151.0,0.00017999,2]
[422482764,1778987868000,-350.48013463,0.00014999,2]
[422482773,1778987868000,-151.0,0.00017999,2]
[422482774,1778987868000,-151.0,0.00017999,2]
[422482775,1778987868000,-151.0,0.00017999,2]
[422482771,1778987868000,-151.0,0.00017999,2]
[422482768,1778987868000,-577.26140885,0.00014999,2]
[422482769,1778987868000,-269.5904,0.00014999,2]
[422482770,1778987868000,-151.0,0.00017999,2]
[422482776,1778987869000,-151.0,0.00017999,2]
[422482777,1778987869000,-151.0,0.00017999,2]
[422482778,1778987869000,-151.0,0.00017999,2]
[422482781,1778987869000,-151.0,0.00017999,2]
[422482782,1778987869000,-151.0,0.00017999,2]
[422482779,1778987869000,-151.0,0.00017999,2]
[422482780,1778987869000,-151.0,0.00017999,2]
[422482783,1778987869000,-151.0,0.00017999,2]
[422482785,1778987869000,-151.0,0.00017999,2]
[422482784,1778987869000,-151.0,0.00017999,2]
[422482787,1778987869000,-151.0,0.00017999,2]
[422482788,1778987869000,-151.0,0.00017999,2]
[422482790,1778987869000,-154.0,0.0002,2]
[422482789,1778987869000,-153.63364138,0.00017999,2]
[422482792,1778987869000,-436.0,0.0002,2]
[422482793,1778987869000,-157.0,0.0002,2]
[422482794,1778987869000,-158.0,0.0002,2]
[422482786,1778987869000,-151.0,0.00017999,2]
[422482791,1778987869000,-282.0,0.0002,2]
[422482795,1778987870000,547.0,0.0002,2]
[422482796,1778987889000,158.0,0.0002,2]
[422482797,1778987890000,89877.87601473,0.00030137,120]
[422482798,1778987902000,341.0,0.00030137,120]
[422482799,1778987948000,249.29936447,0.00027683,120]
[422482800,1778987949000,159.0,0.0002,2]
[422482802,1778987975000,-279.11830182,0.00020979,2]
[422482803,1778987975000,-154.0,0.00021,2]
[422482801,1778987975000,-150.76109754,0.0002058,2]
[422482806,1778987976000,-157.0,0.00021,2]
[422482804,1778987976000,-282.0,0.00021,2]
[422482805,1778987976000,-436.0,0.00021,2]
[422482807,1778987976000,-160.34826974,0.00021,2]
[422482810,1778987976000,-154.0,0.00022,2]
[422482808,1778987976000,-547.0,0.00021,2]
[422482812,1778987976000,-436.0,0.00022,2]
[422482811,1778987976000,-282.0,0.00022,2]
[422482813,1778987976000,-157.0,0.00022,2]
[422482814,1778987976000,-547.0,0.00022,2]
[422482815,1778987976000,-159.0,0.00022,2]
[422482809,1778987976000,-159.0,0.00021,2]
[422482816,1778987997000,500.0,0.00027683,120]
[422482822,1778987998000,-547.0,0.00023,2]
[422482818,1778987998000,-154.0,0.00023,2]
[422482817,1778987998000,-206.39240511,0.00022407,2]
[422482820,1778987998000,-436.0,0.00023,2]
[422482819,1778987998000,-282.0,0.00023,2]
[422482821,1778987998000,-157.0,0.00023,2]
[422482823,1778987998000,-433.0,0.00023,2]
[422482829,1778987998000,-547.0,0.00024,2]
[422482825,1778987998000,-154.0,0.00024,2]
[422482827,1778987998000,-436.0,0.00024,2]
[422482826,1778987998000,-282.0,0.00024,2]
[422482828,1778987998000,-171.0,0.00024,2]
[422482830,1778987998000,-409.0,0.00024078,2]
[422482824,1778987998000,-165.09958891,0.00023,2]
[422482831,1778987998000,-515.91,0.00024079,2]
[422482836,1778987999000,-515.91,0.00024079,2]
[422482832,1778987999000,-515.91,0.00024079,2]
[422482834,1778987999000,-515.91,0.00024079,2]
[422482833,1778987999000,-515.91,0.00024079,2]
[422482835,1778987999000,-515.91,0.00024079,2]
[422482837,1778987999000,-515.91,0.00024079,2]
[422482838,1778987999000,-515.91,0.00024079,2]
[422482839,1778987999000,-515.91,0.00024079,2]
[422482844,1778987999000,-467.56,0.00024084,2]
[422482843,1778987999000,-500.0,0.00024079,2]
[422482841,1778987999000,-500.0,0.00024079,2]
[422482840,1778987999000,-515.91,0.00024079,2]
[422482842,1778987999000,-500.0,0.00024079,2]
[422482847,1778988001000,300.0,0.00024173,2]
[422482846,1778988001000,1200.0,0.00024173,2]
[422482845,1778988001000,300.0,0.00024173,2]
[422482848,1778988002000,300.0,0.00024173,2]
[422482849,1778988039000,235.22,0.00028576,120]
[422482857,1778988064000,-500.0,0.00024277,2]
[422482850,1778988064000,-164.61132503,0.0002,2]
[422482852,1778988064000,-2204.09,0.00024174,2]
[422482851,1778988064000,-235.22,0.00024137,2]
[422482855,1778988064000,-150.0,0.00024189,2]
[422482853,1778988064000,-230.23,0.00024174,2]
[422482854,1778988064000,-1667.69,0.00024174,2]
[422482856,1778988064000,-178.03668944,0.00024199,2]
[422482859,1778988064000,-239.69993582,0.00024277,2]
[422482858,1778988064000,-215.32485252,0.00024277,2]
[422482861,1778988064000,-500.0,0.00024277,2]
[422482863,1778988064000,-500.0,0.00024277,2]
[422482864,1778988064000,-500.0,0.00024277,2]
[422482862,1778988064000,-500.0,0.00024277,2]
[422482865,1778988064000,-500.0,0.00024277,2]
[422482867,1778988064000,-500.0,0.00024277,2]
[422482866,1778988064000,-500.0,0.00024277,2]
[422482860,1778988064000,-500.0,0.00024277,2]
[422482874,1778988065000,-500.0,0.00024277,2]
[422482875,1778988065000,-500.0,0.00024277,2]
[422482873,1778988065000,-500.0,0.00024277,2]
[422482868,1778988065000,-629.51040149,0.00024277,2]
[422482870,1778988065000,-500.0,0.00024277,2]
[422482871,1778988065000,-500.0,0.00024277,2]
[422482869,1778988065000,-500.0,0.00024277,2]
[422482872,1778988065000,-500.0,0.00024277,2]
[422482877,1778988065000,-500.0,0.00024277,2]
[422482876,1778988065000,-500.0,0.00024277,2]
[422482879,1778988065000,-500.0,0.00024277,2]
[422482887,1778988065000,-320.42683138,0.00024277,2]
[422482888,1778988065000,-500.0,0.00024277,2]
[422482886,1778988065000,-500.0,0.00024277,2]
[422482883,1778988065000,-500.0,0.00024277,2]
[422482878,1778988065000,-500.0,0.00024277,2]
[422482884,1778988065000,-500.0,0.00024277,2]
[422482880,1778988065000,-500.0,0.00024277,2]
[422482885,1778988065000,-500.0,0.00024277,2]
[422482881,1778988065000,-500.0,0.00024277,2]
[422482882,1778988065000,-500.0,0.00024277,2]
[422482892,1778988076000,299.02,0.00027239,120]
[422482891,1778988076000,-163.16,0.0002,2]
[422482902,1778988092000,-97295.487098,0.00024278,2]
[422482901,1778988092000,-299.02,0.00024212,2]
[422482893,1778988092000,-139.84,0.0002,2]
[422482899,1778988092000,-303.0,0.00024,2]
[422482897,1778988092000,-303.0,0.00023,2]
[422482898,1778988092000,-500.0,0.00023849,2]
[422482895,1778988092000,-303.0,0.00022,2]
[422482896,1778988092000,-196.07278486,0.00022407,2]
[422482894,1778988092000,-303.0,0.00021,2]
[422482900,1778988092000,-357.58011714,0.00024199,2]
[422482904,1778988103000,-500.0,0.00014999,2]
[422482903,1778988103000,-500.0,0.00014999,2]
[422482916,1778988104000,-24165.98657672,0.00024278,2]
[422482905,1778988104000,-500.0,0.00014999,2]
[422482906,1778988104000,-500.0,0.00014999,2]
[422482909,1778988104000,-500.0,0.00014999,2]
[422482908,1778988104000,-500.0,0.00014999,2]
[422482907,1778988104000,-500.0,0.00014999,2]
[422482911,1778988104000,-500.0,0.00014999,2]
[422482912,1778988104000,-500.0,0.00019299,2]
[422482913,1778988104000,-500.0,0.0002361,2]
[422482915,1778988104000,-167.00671164,0.00024178,2]
[422482910,1778988104000,-500.0,0.00014999,2]
[422482914,1778988104000,-167.00671164,0.00023936,2]
[422482918,1778988131000,277.3,0.00016438,2]
[422482917,1778988131000,277.3,0.00020381,2]
[422482919,1778988132000,277.3,0.0001841,2]
[422482920,1778988167000,160.0,0.0002,4]
[422482921,1778988170000,2000.0,0.00029611,120]
[422482922,1778988194000,170.7072687,0.00030136,120]
[422482923,1778988224000,160.24,0.0002,6]
[422482924,1778988272000,277.8,0.00020361,5]
[422482925,1778988341000,505.8622315,0.00027439,120]
[422482927,1778988403000,-170.31214692,0.00021728,5]
[422482929,1778988432000,505.4,0.0001841,2]
[422482930,1778988432000,505.4,0.00016438,2]
[422482928,1778988432000,505.4,0.00020381,2]
[422482931,1778988444000,500.0,0.00027439,120]
[422482932,1778988459000,500.0,0.00027439,120]
[422482935,1778988515000,166.17,0.00030136,120]
[422482936,1778988538000,500.0,0.00027683,120]
[422482937,1778988546000,160.0,0.00021,7]
[422482939,1778988549000,151.79,0.00012316,2]
[422482938,1778988549000,151.79,0.00011618,2]
[422482941,1778988549000,151.79,0.00013711,2]
[422482942,1778988549000,151.79,0.00014409,2]
[422482940,1778988549000,151.79,0.00013014,2]
[422482946,1778988550000,151.79,0.000172,2]
[422482945,1778988550000,151.79,0.00016502,2]
[422482944,1778988550000,151.79,0.00015804,2]
[422482943,1778988550000,151.79,0.00015107,2]
[422482947,1778988550000,151.79,0.00017897,2]
[422482951,1778988551000,151.79,0.00020688,2]
[422482950,1778988551000,151.79,0.00019991,2]
[422482949,1778988551000,151.79,0.00019293,2]
[422482948,1778988551000,151.79,0.00018595,2]
[422482953,1778988587000,337.0,0.0003,120]
[422482954,1778988611000,300.0,0.0003,120]
[422482955,1778988623000,300.0,0.0003,120]
[422482957,1778988631000,-151.79,0.00021386,2]
[422482961,1778988631000,-706.95471448,0.00022253,2]
[422482959,1778988631000,-151.79,0.00022084,2]
[422482960,1778988631000,-810.78445043,0.00022253,2]
[422482958,1778988631000,-169.22785308,0.00021728,5]
[422482965,1778988632000,-43.58065624,0.00022353,2]
[422482964,1778988632000,-334.92682627,0.00022353,2]
[422482962,1778988632000,-423.13459805,0.00022253,2]
[422482963,1778988632000,-1877.83961829,0.00022353,2]
[422482996,1778988637000,-6180.26643903,0.000229,2]
[422482993,1778988637000,-150.0,0.00022791,2]
[422482994,1778988637000,-300.0,0.00022841,2]
[422482995,1778988637000,-7157.18,0.00022842,2]
[422482990,1778988637000,-152.0,0.00022531,2]
[422482991,1778988637000,-150.0,0.00022613,2]
[422482989,1778988637000,-1200.0,0.0002253,2]
[422482997,1778988637000,-250.24032034,0.00022984,2]
[422482988,1778988637000,-461.81934376,0.00022353,2]
[422482992,1778988637000,-151.79,0.00022781,2]
[422482998,1778988637000,-912.0,0.00023,2]
[422483002,1778988637000,-500.0,0.00023067,2]
[422483000,1778988637000,-1287.1,0.00023022,2]
[422482999,1778988637000,-3240.70389687,0.00023022,2]
[422483016,1778988637000,-532.0,0.00023818,2]
[422483014,1778988637000,-2765.64,0.00023768,2]
[422483012,1778988637000,-151.4728,0.00023767,2]
[422483009,1778988637000,-500.0,0.00023699,2]
[422483007,1778988637000,-2000.0,0.00023689,2]
[422483004,1778988637000,-2212.76644456,0.00023194,2]
[422483005,1778988637000,-166.66,0.00023235,2]
[422483003,1778988637000,-2765.64,0.00023188,2]
[422483001,1778988637000,-85012.58610313,0.00023022,2]
[422483006,1778988637000,-11107.05,0.00023283,2]
[422483092,1778988638000,-161.545,0.00024174,6]
[422483094,1778988638000,-4198.51,0.00024174,2]
[422483096,1778988638000,-418.05,0.00024174,2]
[422483100,1778988638000,-3124.43,0.00024174,2]
[422483088,1778988638000,-900.0,0.00024152,2]
[422483074,1778988638000,-4264.33673522,0.00023967,2]
[422483087,1778988638000,-3458.27265845,0.00024103,2]
[422483085,1778988638000,-4264.33673522,0.00024103,2]
[422483083,1778988638000,-615.0,0.00024085,2]
[422483102,1778988638000,-500.0,0.00024177,2]
[422483077,1778988638000,-166.66,0.00024002,2]
[422483090,1778988638000,-3139.316,0.00024174,6]
[422483098,1778988638000,-1557.83,0.00024174,2]
[422483114,1778988638000,-500.0,0.00024204,2]
[422483106,1778988638000,-9339.3769702,0.00024178,2]
[422483110,1778988638000,-2500.0,0.00024178,2]
[422483108,1778988638000,-190.99921157,0.00024178,2]
[422483123,1778988638000,-151.0,0.00024275,7]
[422483104,1778988638000,-605.44559432,0.00024178,2]
[422483116,1778988638000,-4264.33673522,0.00024239,2]
[422483118,1778988638000,-3458.27265845,0.00024239,2]
[422483120,1778988638000,-188.0,0.00024247,2]
[422483130,1778988638000,-5865.75645904,0.00024277,2]
[422483131,1778988638000,-2798.68773875,0.00024277,2]
[422483121,1778988638000,-1656.90656388,0.00024264,2]
[422483122,1778988638000,-841.16626857,0.00024268,2]
[422483126,1778988638000,-151.0,0.00024275,7]
[422483112,1778988638000,-135342.219,0.00024188,2]
[422483075,1778988638000,-3458.27265845,0.00023967,2]
[422483066,1778988638000,-1742179.4338619,0.00023931,2]
[422483070,1778988638000,-160.0,0.00023931,2]
[422483027,1778988638000,-841.16626857,0.00023921,2]
[422483029,1778988638000,-151.0,0.00023928,7]
[422483033,1778988638000,-151.0,0.00023928,7]
[422483031,1778988638000,-151.0,0.00023928,7]
[422483035,1778988638000,-1000.0,0.0002393,2]
[422483018,1778988638000,-4264.33673523,0.00023831,2]
[422483039,1778988638000,-500.0,0.0002393,2]
[422483037,1778988638000,-500.0,0.0002393,2]
[422483023,1778988638000,-1054.66420624,0.00023831,2]
[422483020,1778988638000,-184.36901784,0.00023831,2]
[422483021,1778988638000,-3458.27265845,0.00023831,2]
[422483025,1778988638000,-199.45,0.00023904,2]
[422483041,1778988638000,-500.0,0.0002393,2]
[422483072,1778988638000,-160.34130374,0.00023931,2]
[422483043,1778988638000,-500.0,0.0002393,2]
[422483051,1778988638000,-292.16782239,0.0002393,2]
[422483047,1778988638000,-500.0,0.0002393,2]
[422483049,1778988638000,-500.0,0.0002393,2]
[422483057,1778988638000,-500.0,0.0002393,2]
[422483064,1778988638000,-2214.0828009,0.00023931,2]
[422483055,1778988638000,-335.81516181,0.0002393,2]
[422483058,1778988638000,-500.0,0.0002393,2]
[422483053,1778988638000,-500.0,0.0002393,2]
[422483060,1778988638000,-500.0,0.0002393,2]
[422483062,1778988638000,-500.0,0.0002393,2]
[422483068,1778988638000,-13342.3562464,0.00023931,2]
[422483079,1778988638000,-200.0,0.00024021,2]
[422483081,1778988638000,-2212.76644456,0.00024034,2]
[422483045,1778988638000,-500.0,0.0002393,2]
[422483125,1778988638000,-151.0,0.00024275,7]
[422483157,1778988638000,-500.0,0.00024277,2]
[422483127,1778988638000,-151.0,0.00024275,7]
[422483163,1778988638000,-500.0,0.00024277,2]
[422483165,1778988638000,-500.0,0.00024277,2]
[422483162,1778988638000,-500.0,0.00024277,2]
[422483168,1778988638000,-11451.52115376,0.00024278,2]
[422483164,1778988638000,-427.19117758,0.00024277,2]
[422483167,1778988638000,-2378538.52632528,0.00024278,2]
[422483170,1778988638000,-505.4,0.00024324,2]
[422483174,1778988638000,-3458.27265845,0.00024375,2]
[422483175,1778988638000,-6464.64,0.00024378,2]
[422483169,1778988638000,-774.94,0.000243,7]
[422483176,1778988638000,-243.81915761,0.00024397,2]
[422483177,1778988638000,-3075.54,0.00024448,2]
[422483178,1778988638000,-3203.84,0.00024476,2]
[422483171,1778988638000,-2765.64,0.00024348,2]
[422483173,1778988638000,-4264.33673522,0.00024375,2]
[422483172,1778988638000,-629.99875176,0.00024364,2]
[422483179,1778988638000,-1852.42,0.00024504,2]
[422483189,1778988638000,-166.66,0.00024769,2]
[422483188,1778988638000,-561.41,0.00024658,2]
[422483180,1778988638000,-4264.33673522,0.00024512,2]
[422483187,1778988638000,-1000.0,0.00024658,2]
[422483182,1778988638000,-1030.27,0.00024573,2]
[422483184,1778988638000,-200.0,0.00024625,2]
[422483181,1778988638000,-3458.27265845,0.00024512,2]
[422483186,1778988638000,-3458.27265845,0.00024648,2]
[422483185,1778988638000,-4264.33673522,0.00024648,2]
[422483124,1778988638000,-151.0,0.00024275,7]
[422483158,1778988638000,-500.0,0.00024277,2]
[422483166,1778988638000,-591.7587591,0.00024277,2]
[422483183,1778988638000,-1680.0,0.00024583,2]
[422483161,1778988638000,-500.0,0.00024277,2]
[422483128,1778988638000,-151.0,0.00024275,7]
[422483129,1778988638000,-513.43920586,0.00024277,2]
[422483132,1778988638000,-166.22900262,0.00024277,2]
[422483133,1778988638000,-2805.00325221,0.00024277,2]
[422483136,1778988638000,-500.0,0.00024277,2]
[422483135,1778988638000,-375.48613759,0.00024277,2]
[422483134,1778988638000,-1105.18419788,0.00024277,10]
[422483140,1778988638000,-502.6269472,0.00024277,2]
[422483139,1778988638000,-500.0,0.00024277,2]
[422483144,1778988638000,-500.0,0.00024277,2]
[422483141,1778988638000,-500.0,0.00024277,2]
[422483142,1778988638000,-500.0,0.00024277,2]
[422483138,1778988638000,-500.0,0.00024277,2]
[422483137,1778988638000,-500.0,0.00024277,2]
[422483146,1778988638000,-300.0,0.00024277,2]
[422483159,1778988638000,-500.0,0.00024277,2]
[422483143,1778988638000,-500.0,0.00024277,2]
[422483155,1778988638000,-500.0,0.00024277,2]
[422483154,1778988638000,-500.0,0.00024277,2]
[422483150,1778988638000,-500.0,0.00024277,2]
[422483147,1778988638000,-500.8620181,0.00024277,2]
[422483153,1778988638000,-500.0,0.00024277,2]
[422483160,1778988638000,-500.0,0.00024277,2]
[422483149,1778988638000,-581.94842131,0.00024277,2]
[422483152,1778988638000,-500.0,0.00024277,2]
[422483148,1778988638000,-364.0,0.00024277,2]
[422483145,1778988638000,-303.73329775,0.00024277,2]
[422483156,1778988638000,-500.0,0.00024277,2]
[422483151,1778988638000,-500.0,0.00024277,2]
[422483237,1778988639000,-167.528222,0.00025057,2]
[422483228,1778988639000,-151.0,0.00025057,2]
[422483226,1778988639000,-151.0,0.00025057,2]
[422483229,1778988639000,-151.0,0.00025057,2]
[422483227,1778988639000,-151.0,0.00025057,2]
[422483224,1778988639000,-151.0,0.00025057,2]
[422483221,1778988639000,-199.909113,0.00025057,2]
[422483222,1778988639000,-199.909113,0.00025057,2]
[422483220,1778988639000,-151.0,0.00025057,2]
[422483238,1778988639000,-167.528222,0.00025057,2]
[422483225,1778988639000,-151.0,0.00025057,2]
[422483223,1778988639000,-151.0,0.00025057,2]
[422483243,1778988639000,-1404.23803,0.00025057,2]
[422483233,1778988639000,-195.443125,0.00025057,2]
[422483234,1778988639000,-195.443125,0.00025057,2]
[422483230,1778988639000,-152.857673,0.00025057,2]
[422483232,1778988639000,-195.443125,0.00025057,2]
[422483235,1778988639000,-195.443125,0.00025057,2]
[422483236,1778988639000,-167.528222,0.00025057,2]
[422483241,1778988639000,-1404.23803,0.00025057,2]
[422483251,1778988639000,-500.0,0.00025057,2]
[422483254,1778988639000,-500.0,0.00025057,2]
[422483252,1778988639000,-500.0,0.00025057,2]
[422483242,1778988639000,-151.0,0.00025057,2]
[422483240,1778988639000,-1404.23803,0.00025057,2]
[422483217,1778988639000,-199.909113,0.00025057,2]
[422483239,1778988639000,-167.528222,0.00025057,2]
[422483218,1778988639000,-151.0,0.00025057,2]
[422483205,1778988639000,-555.96449015,0.00025,2]
[422483215,1778988639000,-300.0,0.00025056,10]
[422483244,1778988639000,-1404.23803,0.00025057,2]
[422483191,1778988639000,-3458.27265845,0.00024784,2]
[422483192,1778988639000,-420.0,0.00024799,2]
[422483190,1778988639000,-4264.33673522,0.00024784,2]
[422483202,1778988639000,-161.16459096,0.00025,2]
[422483200,1778988639000,-500.0,0.00024999,2]
[422483194,1778988639000,-4264.33673522,0.0002492,2]
[422483195,1778988639000,-3458.27265845,0.0002492,2]
[422483198,1778988639000,-500.0,0.00024999,2]
[422483197,1778988639000,-310.1,0.00024946,7]
[422483201,1778988639000,-222.83523923,0.00024999,2]
[422483193,1778988639000,-2212.76644456,0.00024875,2]
[422483219,1778988639000,-199.909113,0.00025057,2]
[422483199,1778988639000,-500.0,0.00024999,2]
[422483206,1778988639000,-322.49820234,0.00025,2]
[422483203,1778988639000,-284.0979994,0.00025,2]
[422483207,1778988639000,-179.85,0.00025,2]
[422483208,1778988639000,-179.86,0.00025,2]
[422483204,1778988639000,-441.19440823,0.00025,2]
[422483214,1778988639000,-398.91020292,0.00025056,10]
[422483210,1778988639000,-151.0,0.00025054,7]
[422483211,1778988639000,-154.94529614,0.00025054,7]
[422483209,1778988639000,-841.16626857,0.00025047,2]
[422483212,1778988639000,-4264.33673522,0.00025056,2]